bitfinex/quotes_BTCUSD_20250623
["timestamp","ask_amount","ask_price","bid_price","bid_amount"]
[1750655128626,0.05014773,101460.0,101450.0,0.17229584]
[1750655129879,0.05014798,101460.0,101450.0,0.17229584]
[1750655132739,0.05014909,101460.0,101450.0,0.17229584]
[1750655135781,0.05015157,101460.0,101450.0,0.17229584]
[1750655136188,0.05015157,101460.0,101450.0,0.46133175]
[1750655138748,0.0501543,101460.0,101450.0,0.46133175]
[1750655138952,0.0501543,101460.0,101450.0,0.17229584]
[1750655139194,0.0501543,101460.0,101450.0,0.40401591]
[1750655139552,0.0501543,101460.0,101450.0,0.37951591]
[1750655140707,0.0501543,101460.0,101450.0,0.37948877]
[1750655141525,0.04092,101460.0,101450.0,0.37948877]
[1750655141729,0.05015916,101460.0,101450.0,0.37948877]
[1750655142382,0.05015916,101460.0,101450.0,0.40867754]
[1750655144646,0.06865839,101460.0,101450.0,0.40867754]
[1750655145931,0.06865839,101460.0,101450.0,0.11966877]
[1750655146144,0.06865839,101460.0,101450.0,0.40867754]
[1750655147384,0.06865839,101460.0,101450.0,0.11966877]
[1750655147617,0.06865787,101460.0,101450.0,0.40867754]
[1750655148952,0.05941871,101460.0,101450.0,0.40867754]
[1750655149159,0.05942469,101460.0,101450.0,0.40867754]
[1750655149834,0.06867703,101460.0,101450.0,0.40867754]
[1750655150062,0.06867703,101460.0,101450.0,0.37948877]
[1750655150894,0.06867704,101460.0,101450.0,0.37948877]
[1750655153672,0.06867666,101460.0,101450.0,0.37948877]
[1750655156554,0.05017235,101460.0,101450.0,0.37948877]
[1750655156765,0.06867592,101460.0,101450.0,0.37948877]
[1750655156973,0.05017197,101460.0,101450.0,0.37948877]
[1750655157425,0.05013197,101460.0,101450.0,0.46325277]
[1750655157854,0.04088,101460.0,101450.0,0.46325277]
[1750655159039,0.04088,101460.0,101450.0,0.46374277]
[1750655159456,0.04088,101460.0,101450.0,0.46474277]
[1750655159901,0.04088,101460.0,101450.0,0.46574277]
[1750655160329,0.04088,101460.0,101450.0,0.46874277]
[1750655160541,0.04088,101460.0,101450.0,0.47274277]
[1750655161407,0.04497,101470.0,101460.0,0.06267]
[1750655161609,0.0727012,101470.0,101460.0,0.55747305]
[1750655162227,0.07270102,101470.0,101460.0,0.58297305]
[1750655162426,0.07270102,101470.0,101460.0,0.58293305]
[1750655162674,0.07316328,101470.0,101460.0,0.58293305]
[1750655162870,0.05467595,101470.0,101460.0,0.58393305]
[1750655163414,0.05467595,101470.0,101460.0,0.58593305]
[1750655164407,0.05467595,101470.0,101460.0,0.87494182]
[1750655166897,0.05467595,101470.0,101460.0,0.58593305]
[1750655167959,0.04543226,101470.0,101460.0,0.58593305]
[1750655171325,0.04543226,101470.0,101460.0,0.53893877]
[1750655175773,0.04088,101470.0,101460.0,0.53776877]
[1750655175972,0.04088,101470.0,101460.0,0.53897877]
[1750655177865,0.04088,101470.0,101460.0,0.82798754]
[1750655178887,0.04088,101470.0,101460.0,0.53897877]
[1750655181140,0.04088,101470.0,101460.0,0.82798754]
[1750655181351,0.04088,101470.0,101460.0,0.89026182]
[1750655185609,0.04088,101470.0,101460.0,0.88926182]
[1750655185768,0.04088,101470.0,101460.0,0.88726182]
[1750655185975,0.04088,101470.0,101460.0,0.89426182]
[1750655186784,0.66984877,101490.0,101460.0,0.83280182]
[1750655187020,0.71856951,101490.0,101470.0,0.35471877]
[1750655187230,0.68846951,101490.0,101480.0,0.02671]
[1750655187660,0.39946074,101490.0,101480.0,0.02671]
[1750655188467,0.40050074,101490.0,101480.0,0.02671]
[1750655188904,0.39950074,101490.0,101480.0,0.02671]
[1750655189115,0.40050074,101490.0,101480.0,0.02671]
[1750655190277,0.68950951,101490.0,101480.0,0.02671]
[1750655190450,0.40050074,101490.0,101480.0,0.02671]
[1750655192076,0.40050074,101490.0,101480.0,0.31450877]
[1750655192277,0.40050074,101490.0,101480.0,0.37860877]
[1750655192480,0.40050074,101490.0,101480.0,0.37981877]
[1750655192481,0.06049734,101490.0,101480.0,0.37981877]
[1750655193144,0.01965734,101490.0,101480.0,0.82754754]
[1750655193348,0.01965734,101490.0,101480.0,0.66882754]
[1750655193349,0.06049734,101490.0,101480.0,0.66882754]
[1750655193551,0.04201862,101490.0,101480.0,0.90340331]
[1750655193754,0.04201862,101490.0,101480.0,0.74468331]
[1750655194002,0.04201862,101490.0,101480.0,0.32538577]
[1750655194211,0.04201862,101490.0,101480.0,0.82754754]
[1750655194622,0.00117862,101490.0,101480.0,0.76912693]
[1750655194832,0.00117862,101490.0,101480.0,0.99238778]
[1750655195037,0.00117862,101490.0,101480.0,1.28139655]
[1750655195290,0.00017862,101490.0,101480.0,1.38169594]
[1750655195491,0.00017862,101490.0,101480.0,1.72369594]
[1750655195704,0.00017862,101490.0,101480.0,1.72469594]
[1750655195906,0.00017862,101490.0,101480.0,1.72269594]
[1750655196114,0.00017862,101490.0,101480.0,1.72169594]
[1750655196320,0.00017862,101490.0,101480.0,1.14334197]
[1750655196526,0.00117862,101490.0,101480.0,1.15534197]
[1750655196948,0.00117862,101490.0,101480.0,1.14934197]
[1750655197152,0.00117862,101490.0,101480.0,1.44701431]
[1750655199890,0.00117862,101490.0,101480.0,1.73981431]
[1750655203784,0.00117862,101490.0,101480.0,1.74390431]
[1750655204375,0.00117862,101490.0,101480.0,1.79390431]
[1750655206260,0.00117862,101490.0,101480.0,1.83474431]
[1750655208633,0.63326423,101540.0,101530.0,0.0255]
[1750655208835,0.71179844,101540.0,101530.0,0.0255]
[1750655209109,0.72164619,101540.0,101530.0,0.0255]
[1750655209480,0.72169619,101540.0,101530.0,0.0255]
[1750655210166,0.71184793,101540.0,101530.0,0.0255]
[1750655210384,0.63270661,101540.0,101530.0,0.0255]
[1750655210593,0.64255426,101540.0,101530.0,0.0255]
[1750655210814,0.36968606,101530.0,101500.0,0.0655]
[1750655211006,0.36968606,101530.0,101500.0,0.18418]
[1750655211007,0.32965234,101520.0,101500.0,0.18418]
[1750655211211,0.35724187,101520.0,101500.0,0.18418]
[1750655211657,0.37514187,101520.0,101500.0,0.0255]
[1750655212368,0.37514187,101520.0,101500.0,0.0285]
[1750655213056,0.37515538,101520.0,101500.0,0.0285]
[1750655215541,0.37515538,101520.0,101500.0,0.06]
[1750655215980,0.37515984,101520.0,101500.0,0.06]
[1750655216203,0.37515984,101520.0,101500.0,0.0931]
[1750655216641,0.37515984,101520.0,101500.0,0.06]
[1750655217529,0.37515984,101520.0,101500.0,0.0285]
[1750655218223,0.28875201,101510.0,101500.0,0.0926]
[1750655218437,0.34374556,101520.0,101500.0,0.38135201]
[1750655218666,0.30045201,101510.0,101500.0,0.0285]
[1750655218894,0.31887027,101510.0,101500.0,0.0285]
[1750655219103,0.31887027,101510.0,101500.0,0.0255]
[1750655219342,0.31887027,101510.0,101500.0,0.0295]
[1750655219992,0.01841826,101510.0,101500.0,0.0295]
[1750655220210,0.65886112,101520.0,101510.0,0.0255]
[1750655220427,0.69966129,101520.0,101510.0,0.0255]
[1750655220844,0.68123049,101520.0,101510.0,0.0255]
[1750655221279,0.66953049,101520.0,101510.0,0.0255]
[1750655221499,0.0408,101520.0,101510.0,0.0255]
[1750655221721,0.3808,101520.0,101510.0,0.0285]
[1750655222802,0.0408,101520.0,101510.0,0.0609]
[1750655223006,0.0408,101520.0,101510.0,0.0931]
[1750655223617,0.0477261,101520.0,101510.0,0.0931]
[1750655223817,0.05923778,101520.0,101510.0,0.0931]
[1750655224061,0.05923778,101520.0,101510.0,0.09428]
[1750655224483,0.05923778,101520.0,101510.0,0.0931]
[1750655227290,0.05923778,101520.0,101510.0,0.14844905]
[1750655228327,0.05923778,101520.0,101510.0,0.09428]
[1750655228538,0.05927137,101520.0,101510.0,0.09428]
[1750655229418,0.0592711,101520.0,101510.0,0.09428]
[1750655230671,0.06850617,101520.0,101510.0,0.09428]
[1750655234398,0.0408,101520.0,101510.0,0.09428]
[1750655236291,0.0408,101520.0,101510.0,0.0931]
[1750655237119,0.0408,101520.0,101510.0,0.09432]
[1750655238071,0.0408,101520.0,101510.0,0.0931]
[1750655238283,0.35108008,101520.0,101510.0,0.0285]
[1750655238497,0.36050703,101520.0,101510.0,0.0285]
[1750655238714,0.35050703,101520.0,101510.0,0.0285]
[1750655239053,0.36035662,101520.0,101510.0,0.0285]
[1750655239399,0.35785662,101520.0,101510.0,0.0285]
[1750655239840,0.37020631,101520.0,101510.0,0.0285]
[1750655240040,1.36447229,101520.0,101510.0,0.003]
[1750655240240,1.37827894,101520.0,101510.0,0.003]
[1750655240473,1.37827894,101520.0,101510.0,0.0285]
[1750655241116,1.18127343,101520.0,101510.0,0.0285]
[1750655241715,1.16894925,101520.0,101510.0,0.003]
[1750655241934,1.39801422,101520.0,101510.0,0.003]
[1750655243131,1.39801093,101520.0,101510.0,0.003]
[1750655243340,1.41255178,101520.0,101510.0,0.003]
[1750655244358,1.45201904,101520.0,101510.0,0.003]
[1750655244559,1.41255178,101520.0,101510.0,0.001]
[1750655245364,1.41255178,101520.0,101490.0,0.0255]
[1750655245592,0.32998568,101500.0,101490.0,0.0255]
[1750655245830,0.53642944,101500.0,101490.0,0.0255]
[1750655246028,0.21676944,101490.0,101480.0,0.0255]
[1750655246244,0.52412369,101490.0,101480.0,0.0255]
[1750655246407,0.35288393,101490.0,101480.0,0.0255]
[1750655246774,0.56164768,101490.0,101480.0,0.0255]
[1750655247173,0.55429498,101490.0,101480.0,0.0255]
[1750655247368,0.55429498,101490.0,101480.0,0.0265]
[1750655248120,0.54737122,101490.0,101480.0,0.0265]
[1750655248350,0.54736129,101490.0,101480.0,0.0295]
[1750655248557,0.35029754,101490.0,101480.0,0.0295]
[1750655248758,0.02766088,101490.0,101480.0,0.0935]
[1750655248985,0.40850034,101490.0,101480.0,0.09472]
[1750655249443,0.43824414,101490.0,101480.0,0.09472]
[1750655249716,0.7177614,101490.0,101480.0,0.09472]
[1750655249937,0.7072679,101490.0,101480.0,0.09472]
[1750655250146,0.41853741,101490.0,101480.0,0.09472]
[1750655250395,0.42838982,101490.0,101480.0,0.09472]
[1750655250604,0.41853741,101490.0,101480.0,0.09472]
[1750655250798,0.07853741,101490.0,101480.0,0.09472]
[1750655251415,0.08838972,101490.0,101480.0,0.09472]
[1750655251795,0.0607312,101490.0,101480.0,0.09472]
[1750655252004,0.07849441,101490.0,101480.0,0.09472]
[1750655252213,0.06845552,101490.0,101480.0,0.09472]
[1750655252913,0.02761552,101490.0,101480.0,0.09472]
[1750655253127,0.06845552,101490.0,101480.0,0.13306505]
[1750655253368,0.06845552,101490.0,101480.0,0.09472]
[1750655253584,0.04084,101490.0,101480.0,0.09472]
[1750655254440,1.03468042,101500.0,101490.0,0.09062]
[1750655254441,0.23688,101500.0,101490.0,0.09062]
[1750655254687,0.27772,101500.0,101490.0,0.09062]
[1750655254903,0.28757153,101500.0,101490.0,0.0894]
[1750655255155,0.29677049,101500.0,101490.0,0.0894]
[1750655255571,0.59535271,101500.0,101490.0,0.0894]
[1750655255788,0.58550098,101500.0,101490.0,0.0904]
[1750655256253,0.59535271,101500.0,101490.0,0.0904]
[1750655257161,0.58550098,101500.0,101490.0,0.0914]
[1750655257385,0.59559582,101500.0,101490.0,0.0914]
[1750655257609,0.60544755,101500.0,101490.0,0.0914]
[1750655258296,0.61529937,101500.0,101490.0,0.0914]
[1750655258982,0.6350035,101500.0,101490.0,0.0914]
[1750655259200,0.63370414,101500.0,101490.0,0.0275]
[1750655259415,0.85185917,101500.0,101490.0,0.0275]
[1750655259618,0.63370414,101500.0,101490.0,0.0275]
[1750655259870,0.63370414,101500.0,101490.0,0.0578]
[1750655260428,0.64355616,101500.0,101490.0,0.0578]
[1750655260636,0.63370782,101500.0,101490.0,0.0578]
[1750655261671,0.63371693,101500.0,101490.0,0.0578]
[1750655261884,0.63371693,101500.0,101490.0,0.0907]
[1750655262738,0.97371693,101500.0,101490.0,0.0907]
[1750655263183,0.96386501,101500.0,101490.0,0.0907]
[1750655263357,0.96386453,101500.0,101490.0,0.0907]
[1750655263783,0.97371635,101500.0,101490.0,0.0907]
[1750655265260,0.98356846,101500.0,101490.0,0.0907]
[1750655265673,0.97436603,101500.0,101490.0,0.0907]
[1750655265863,0.98358023,101500.0,101490.0,0.0907]
[1750655266066,0.96387649,101500.0,101490.0,0.0907]
[1750655266282,0.97372831,101500.0,101490.0,0.0907]
[1750655266490,0.97374315,101500.0,101490.0,0.0907]
[1750655266710,0.99051361,101500.0,101490.0,0.0907]
[1750655267111,0.99051352,101500.0,101490.0,0.0907]
[1750655267747,1.00036573,101500.0,101490.0,0.0907]
[1750655268377,1.18755862,101500.0,101490.0,0.002]
[1750655268582,1.21119175,101500.0,101490.0,0.002]
[1750655268794,1.21119175,101500.0,101490.0,0.0275]
[1750655269221,0.9950809,101500.0,101490.0,0.0275]
[1750655269437,0.9714469,101500.0,101490.0,0.0878]
[1750655269665,0.98651293,101500.0,101490.0,0.0878]
[1750655270313,0.96974266,101500.0,101490.0,0.0878]
[1750655270529,0.97959448,101500.0,101490.0,0.0878]
[1750655270947,0.96974256,101500.0,101490.0,0.0878]
[1750655271363,0.96974256,101500.0,101490.0,0.08903]
[1750655271778,0.97959438,101500.0,101490.0,0.08903]
[1750655272653,0.96974256,101500.0,101490.0,0.08903]
[1750655273284,0.73286256,101500.0,101490.0,0.08903]
[1750655273746,0.73286266,101500.0,101490.0,0.08903]
[1750655274186,0.72301093,101500.0,101490.0,0.08903]
[1750655274745,0.70330806,101500.0,101490.0,0.08903]
[1750655275176,0.7131595,101500.0,101490.0,0.08903]
[1750655275333,0.7102384,101500.0,101490.0,0.08903]
[1750655275730,0.37862452,101500.0,101490.0,0.08903]
[1750655275939,0.36422186,101500.0,101490.0,0.097933]
[1750655276150,0.15496946,101500.0,101490.0,0.097933]
[1750655276575,0.32338186,101500.0,101490.0,0.097933]
[1750655276801,0.52302186,101500.0,101490.0,0.097933]
[1750655277027,0.03465137,101500.0,101490.0,0.097933]
[1750655277248,0.07553137,101500.0,101490.0,0.097933]
[1750655277681,0.07553717,101500.0,101490.0,0.097933]
[1750655278549,0.08546805,101500.0,101490.0,0.08903]
[1750655278922,0.07553717,101500.0,101490.0,0.08903]
[1750655280420,0.07555067,101500.0,101490.0,0.08903]
[1750655281059,0.07555067,101500.0,101490.0,0.37776049]
[1750655281275,0.06861654,101500.0,101490.0,0.37776049]
[1750655281494,0.07861312,101500.0,101490.0,0.41553654]
[1750655281714,0.07861312,101500.0,101490.0,0.08903]
[1750655282133,0.06861654,101500.0,101490.0,0.08903]
[1750655282996,0.06861473,101500.0,101490.0,0.08903]
[1750655283199,0.06861473,101500.0,101490.0,0.37776049]
[1750655285922,0.06860422,101500.0,101490.0,0.37776049]
[1750655288843,0.06859938,101500.0,101490.0,0.43437994]
[1750655289050,0.06859938,101500.0,101490.0,0.37776049]
[1750655290505,0.02771938,101500.0,101490.0,0.37776049]
[1750655291033,0.04088,101500.0,101490.0,0.37776049]
[1750655291270,0.35969715,101530.0,101520.0,0.0255]
[1750655291486,0.46883049,101530.0,101520.0,0.0876]
[1750655291700,0.75756098,101530.0,101520.0,0.0876]
[1750655291926,0.75756175,101530.0,101520.0,0.0255]
[1750655292352,0.46883126,101530.0,101520.0,0.0255]
[1750655292567,0.75756175,101530.0,101520.0,0.0255]
[1750655292817,0.76056175,101530.0,101520.0,0.0255]
[1750655293011,0.75470716,101530.0,101520.0,0.0255]
[1750655293215,0.76467811,101530.0,101520.0,0.0558]
[1750655293428,0.77452741,101530.0,101520.0,0.0558]
[1750655293802,0.77052731,101530.0,101520.0,0.0558]
[1750655294008,0.76267811,101530.0,101520.0,0.0558]
[1750655294402,0.75967811,101530.0,101520.0,0.0558]
[1750655294604,0.75965774,101530.0,101520.0,0.0558]
[1750655294898,0.91849774,101530.0,101520.0,0.0255]
[1750655295171,0.93134694,101530.0,101520.0,0.0255]
[1750655295587,0.92149774,101530.0,101520.0,0.0255]
[1750655295801,0.92149774,101530.0,101520.0,0.0564]
[1750655296476,0.93134607,101530.0,101520.0,0.0869]
[1750655297178,0.93133944,101530.0,101520.0,0.0869]
[1750655297396,0.93133868,101530.0,101520.0,0.0869]
[1750655297618,0.92148977,101530.0,101520.0,0.0869]
[1750655297853,0.93133859,101530.0,101520.0,0.0869]
[1750655298075,0.93133878,101530.0,101520.0,0.0869]
[1750655298522,0.93133868,101530.0,101520.0,0.0869]
[1750655298741,0.94118779,101530.0,101520.0,0.0255]
[1750655298958,0.95103709,101530.0,101520.0,0.0579]
[1750655299109,0.94118779,101530.0,101520.0,0.0909]
[1750655299524,0.92148977,101530.0,101520.0,0.0909]
[1750655299743,0.93133868,101530.0,101520.0,0.0909]
[1750655299929,0.92148977,101530.0,101520.0,0.0909]
[1750655300130,0.93133868,101530.0,101520.0,0.0909]
[1750655300381,0.88824783,101530.0,101520.0,0.0909]
[1750655300575,0.76162046,101530.0,101520.0,0.0909]
[1750655300808,0.93030928,101530.0,101520.0,0.0909]
[1750655301036,0.41231282,101530.0,101520.0,0.0909]
[1750655301248,0.38178111,101530.0,101520.0,0.39008449]
[1750655301648,0.58158111,101530.0,101520.0,0.101354]
[1750655302067,0.37878111,101530.0,101520.0,0.101354]
[1750655302270,0.57958111,101530.0,101520.0,0.101354]
[1750655302769,0.57958111,101530.0,101520.0,0.102354]
[1750655302993,0.24058111,101530.0,101520.0,0.102354]
[1750655303223,0.23858111,101530.0,101520.0,0.102354]
[1750655303437,0.23958111,101530.0,101520.0,0.102354]
[1750655304024,0.23858111,101530.0,101520.0,0.102354]
[1750655304231,0.23858111,101530.0,101520.0,0.103354]
[1750655305715,0.07966111,101530.0,101520.0,0.103354]
[1750655305930,0.08950954,101530.0,101520.0,0.09414]
[1750655306133,0.42949687,101530.0,101520.0,0.09414]
[1750655306553,0.41964844,101530.0,101520.0,0.09414]
[1750655308251,0.57868844,101530.0,101520.0,0.09414]
[1750655308895,0.5694688,101530.0,101520.0,0.09414]
[1750655309107,0.57869759,101530.0,101520.0,0.09414]
[1750655309884,0.55102952,101530.0,101520.0,0.09414]
[1750655310099,0.58562549,101530.0,101520.0,0.09414]
[1750655310310,0.42674549,101530.0,101520.0,0.09414]
[1750655311452,0.43659401,101530.0,101520.0,0.09414]
[1750655311690,0.75487153,101530.0,101520.0,0.0599]
[1750655312612,0.75487153,101530.0,101520.0,0.0921]
[1750655314744,0.75487455,101530.0,101520.0,0.0921]
[1750655314951,0.75487445,101530.0,101520.0,0.0921]
[1750655315167,0.74502525,101530.0,101520.0,0.0921]
[1750655315818,0.75487455,101530.0,101520.0,0.0921]
[1750655316034,0.95186066,101530.0,101520.0,0.0275]
[1750655316255,0.77850774,101530.0,101520.0,0.0275]
[1750655316680,0.77850774,101530.0,101520.0,0.0608]
[1750655317372,0.77850774,101530.0,101520.0,0.0938]
[1750655317595,0.75083494,101530.0,101520.0,0.0938]
[1750655317823,0.7785397,101530.0,101520.0,0.0938]
[1750655318266,0.96567729,101530.0,101520.0,0.0275]
[1750655320653,0.61458933,101530.0,101520.0,0.0275]
[1750655321182,0.61458932,101530.0,101520.0,0.0275]
[1750655321379,0.41760321,101530.0,101520.0,0.0275]
[1750655321581,0.41760321,101530.0,101520.0,0.0598]
[1750655321779,0.42756519,101530.0,101520.0,0.0598]
[1750655322411,0.41771589,101530.0,101520.0,0.0598]
[1750655322614,0.42756509,101530.0,101520.0,0.0925]
[1750655323018,0.76756509,101530.0,101520.0,0.0925]
[1750655323231,0.76063459,101530.0,101520.0,0.0925]
[1750655323431,0.7675649,101530.0,101520.0,0.0925]
[1750655323841,0.7577157,101530.0,101520.0,0.0925]
[1750655324129,0.71667502,101530.0,101520.0,0.103004]
[1750655324373,0.91659502,101530.0,101520.0,0.09363]
[1750655324764,0.92644374,101530.0,101520.0,0.09363]
[1750655326114,0.92644363,101530.0,101520.0,0.09363]
[1750655326492,0.93629254,101530.0,101520.0,0.09363]
[1750655327156,0.93629245,101530.0,101520.0,0.09363]
[1750655327579,0.94614156,101530.0,101520.0,0.09363]
[1750655327735,0.94614156,101530.0,101520.0,0.0925]
[1750655329129,0.94614208,101530.0,101520.0,0.0925]
[1750655330966,0.93629365,101530.0,101520.0,0.0925]
[1750655331120,0.93625365,101530.0,101520.0,0.0925]
[1750655331343,0.94610285,101530.0,101520.0,0.0925]
[1750655331547,0.94610352,101530.0,101520.0,0.0925]
[1750655331755,0.9362549,101530.0,101520.0,0.0925]
[1750655331971,0.9362555,101530.0,101520.0,0.0925]
[1750655332373,0.93624864,101530.0,101520.0,0.0925]
[1750655332586,0.92639944,101530.0,101520.0,0.0925]
[1750655334949,0.92640862,101530.0,101520.0,0.0925]
[1750655336210,0.62783588,101530.0,101520.0,0.0925]
[1750655336421,0.62783588,101530.0,101520.0,0.09363]
[1750655336422,0.92640852,101530.0,101520.0,0.09363]
[1750655336627,0.93625772,101530.0,101520.0,0.09363]
[1750655337127,0.92640852,101530.0,101520.0,0.09363]
[1750655337352,0.93625763,101530.0,101520.0,0.09363]
[1750655337553,1.43179546,101530.0,101520.0,0.0343]
[1750655337696,1.4318052,101530.0,101520.0,0.0343]
[1750655338686,1.42195619,101530.0,101520.0,0.0646]
[1750655340250,1.65879619,101530.0,101520.0,0.0646]
[1750655340485,1.63336939,101530.0,101520.0,0.0646]
[1750655340707,1.65879413,101530.0,101520.0,0.0646]
[1750655341310,1.65879319,101530.0,101520.0,0.0646]
[1750655343320,1.65878926,101530.0,101520.0,0.0646]
[1750655344556,1.65878883,101530.0,101520.0,0.0646]
[1750655346761,1.64893972,101530.0,101520.0,0.0646]
[1750655348485,1.64893724,101530.0,101520.0,0.0646]
[1750655348712,1.64893688,101530.0,101520.0,0.0646]
[1750655348921,1.64893564,101530.0,101520.0,0.0646]
[1750655349737,1.64893557,101530.0,101520.0,0.0646]
[1750655351751,1.64893422,101530.0,101520.0,0.0646]
[1750655356158,0.69594384,101530.0,101520.0,0.09126]
[1750655356358,1.15327629,101530.0,101520.0,0.09126]
[1750655356583,1.15327618,101530.0,101520.0,0.09126]
[1750655356804,0.99451618,101530.0,101520.0,0.09126]
[1750655357017,1.15327618,101530.0,101520.0,0.09126]
[1750655357230,1.15331577,101530.0,101520.0,0.09126]
[1750655357442,1.17301388,101530.0,101520.0,0.09126]
[1750655357655,1.16316468,101530.0,101520.0,0.09126]
[1750655357923,1.12850515,101530.0,101520.0,0.09126]
[1750655358344,1.13835416,101530.0,101520.0,0.09126]
[1750655358552,1.14820327,101530.0,101520.0,0.09126]
[1750655358972,1.13835416,101530.0,101520.0,0.09126]
[1750655359788,1.33534085,101530.0,101520.0,0.09126]
[1750655360216,1.32549203,101530.0,101520.0,0.09126]
[1750655360433,1.12573203,101530.0,101520.0,0.09126]
[1750655360645,1.32545203,101530.0,101520.0,0.09126]
[1750655361114,1.12846592,101530.0,101520.0,0.09126]
[1750655361305,0.83974229,101530.0,101520.0,0.09126]
[1750655361512,1.12846592,101530.0,101520.0,0.09126]
[1750655361938,1.32545203,101530.0,101520.0,0.09126]
[1750655362842,1.31560312,101530.0,101520.0,0.09126]
[1750655364295,1.34101992,101530.0,101520.0,0.09126]
[1750655364749,1.35026239,101530.0,101520.0,0.09126]
[1750655366317,1.34101992,101530.0,101520.0,0.09126]
[1750655366531,1.3502653,101530.0,101520.0,0.09126]
[1750655367366,1.37979093,101530.0,101520.0,0.09126]
[1750655367586,0.96338661,101530.0,101520.0,0.09126]
[1750655367812,0.30513735,101530.0,101520.0,0.37998363]
[1750655368033,0.31254218,101530.0,101520.0,0.37998363]
[1750655369126,0.30561033,101530.0,101520.0,0.09126]
[1750655369367,0.312544,101530.0,101520.0,0.37998363]
[1750655369849,0.312544,101530.0,101520.0,0.09126]
[1750655370290,0.312544,101530.0,101520.0,0.37998363]
[1750655370713,0.074704,101530.0,101520.0,0.37998363]
[1750655371840,0.07470012,101530.0,101520.0,0.37998363]
[1750655372062,0.05717517,101530.0,101520.0,0.37998363]
[1750655372720,0.06853491,101530.0,101520.0,0.37998363]
[1750655373431,0.06853491,101530.0,101520.0,0.09126]
[1750655373657,0.06853491,101530.0,101520.0,0.37998363]
[1750655374136,0.06853491,101530.0,101520.0,0.09126]
[1750655374358,0.06853491,101530.0,101520.0,0.37998363]
[1750655374920,0.06852519,101530.0,101520.0,0.37998363]
[1750655375967,0.04092,101530.0,101520.0,0.37998363]
[1750655376386,0.04096,101530.0,101520.0,0.37998363]
[1750655376900,0.05917972,101530.0,101520.0,0.37998363]
[1750655377590,0.05917972,101530.0,101520.0,0.43779429]
[1750655379070,0.05917972,101530.0,101520.0,0.37998363]
[1750655379709,0.01825972,101530.0,101520.0,0.37998363]
[1750655379930,4e-05,101530.0,101520.0,0.66870726]
[1750655380357,4e-05,101530.0,101520.0,0.37983379]
[1750655384669,0.04092,101540.0,101530.0,0.06283]
[1750655384893,0.06638434,101540.0,101530.0,0.51020379]
[1750655385373,0.05946433,101540.0,101530.0,0.51020379]
[1750655385589,0.07770616,101540.0,101530.0,0.51020379]
[1750655385797,0.07870616,101540.0,101530.0,0.56377417]
[1750655386228,0.07870305,101540.0,101530.0,0.56377417]
[1750655386679,0.07870305,101540.0,101530.0,0.51020379]
[1750655386884,0.07970305,101540.0,101530.0,0.51020379]
[1750655387930,0.08892621,101540.0,101530.0,0.51020379]
[1750655388416,0.07068438,101540.0,101530.0,0.51020379]
[1750655389038,0.06146122,101540.0,101530.0,0.51020379]
[1750655389249,0.07068405,101540.0,101530.0,0.51020379]
[1750655389882,0.10383305,101540.0,101530.0,0.51020379]
[1750655390096,0.10383305,101540.0,101530.0,0.53570379]
[1750655390309,0.10383274,101540.0,101530.0,0.53570379]
[1750655391155,0.44383274,101540.0,101530.0,0.53570379]
[1750655391387,0.4438321,101540.0,101530.0,0.53570379]
[1750655394777,0.43461022,101540.0,101530.0,0.53570379]
[1750655394989,0.44383723,101540.0,101530.0,0.53570379]
[1750655397358,0.45076476,101540.0,101530.0,0.53570379]
[1750655397814,0.45077545,101540.0,101530.0,0.53570379]
[1750655399769,0.45077545,101540.0,101530.0,0.58927417]
[1750655399996,0.44384803,101540.0,101530.0,0.58927417]
[1750655400216,0.42539651,101540.0,101530.0,0.58927417]
[1750655400687,0.42539651,101540.0,101530.0,0.53570379]
[1750655402473,0.42539651,101540.0,101530.0,0.53569536]
[1750655404510,0.08539651,101540.0,101530.0,0.53569536]
[1750655407556,0.07615995,101540.0,101530.0,0.53569536]
[1750655409152,0.00209095,101540.0,101530.0,0.53569536]
[1750655409369,0.00209095,101540.0,101530.0,0.90668679]
[1750655409796,0.00209095,101540.0,101530.0,0.93630579]
[1750655410263,0.00109095,101540.0,101530.0,0.93630579]
[1750655410545,0.00109095,101540.0,101530.0,0.94030579]
[1750655411016,9.095e-05,101540.0,101530.0,0.93630579]
[1750655411447,0.00109095,101540.0,101530.0,0.95030579]
[1750655415928,0.00109095,101540.0,101530.0,0.96484664]
[1750655417901,0.00109095,101540.0,101530.0,0.9977564]
[1750655421526,0.00109095,101540.0,101530.0,0.9976364]
[1750655427148,0.00109095,101540.0,101530.0,1.38650115]
[1750655428195,0.00109095,101540.0,101530.0,1.09793579]
[1750655430280,0.00109095,101540.0,101530.0,0.8092134]
[1750655430478,0.00109095,101540.0,101530.0,1.1020134]
[1750655431126,0.00113095,101540.0,101530.0,1.1020134]
[1750655435727,0.04088,101560.0,101540.0,0.07524085]
[1750655435967,0.05010014,101560.0,101550.0,0.50895833]
[1750655436512,0.05010014,101560.0,101550.0,0.53857333]
[1750655437773,0.06855477,101560.0,101550.0,0.53857333]
[1750655437985,0.06856194,101560.0,101550.0,0.54257333]
[1750655438654,0.06856194,101560.0,101550.0,0.54557333]
[1750655438855,0.06856194,101560.0,101550.0,0.61201469]
[1750655439831,0.06856194,101560.0,101550.0,0.54557333]
[1750655440745,0.06857212,101560.0,101550.0,0.54557333]
[1750655442199,0.06861212,101560.0,101550.0,0.54557333]
[1750655443506,0.0686141,101560.0,101550.0,0.54557333]
[1750655446492,0.0686487,101560.0,101550.0,0.54557333]
[1750655447585,0.0686487,101560.0,101550.0,0.57107333]
[1750655448139,0.0686487,101560.0,101550.0,0.64006469]
[1750655448922,0.0686487,101560.0,101550.0,0.57107333]
[1750655450411,0.0686487,101560.0,101550.0,0.57107705]
[1750655451739,0.0686487,101560.0,101550.0,0.41239705]
[1750655451877,0.0686487,101560.0,101550.0,0.57107705]
[1750655452247,0.06864748,101560.0,101550.0,0.57107705]
[1750655453967,0.06864748,101560.0,101550.0,0.66890998]
[1750655453969,0.0092829,101560.0,101550.0,0.97186288]
[1750655454747,4e-05,101560.0,101550.0,0.96886288]
[1750655455217,0.04088,101580.0,101570.0,0.029]
[1750655455415,0.06904258,101580.0,101570.0,0.47613205]
[1750655456255,0.06904263,101580.0,101570.0,0.47613205]
[1750655456445,0.06904263,101580.0,101570.0,0.47913205]
[1750655456648,0.06904263,101580.0,101570.0,0.50913205]
[1750655456852,0.06904263,101580.0,101570.0,0.51022205]
[1750655457511,0.06904263,101580.0,101570.0,0.51122205]
[1750655457742,0.02816263,101580.0,101570.0,0.51122205]